bitfinex-derivatives/quotes_BTCF0:USTF0_20250710
["timestamp","ask_amount","ask_price","bid_price","bid_amount"]
[1752176159504,0.72889171,113280.0,113270.0,0.01576]
[1752176159721,1.03523592,113280.0,113270.0,0.48069789]
[1752176159921,1.30059951,113280.0,113270.0,1.4387743]
[1752176160121,1.29195889,113280.0,113270.0,1.4387743]
[1752176160331,1.29195889,113280.0,113270.0,1.26231]
[1752176160725,1.29595889,113280.0,113270.0,1.4387743]
[1752176160932,1.03040308,113280.0,113270.0,1.4387743]
[1752176161126,1.03240308,113280.0,113270.0,1.4387743]
[1752176162128,1.03040308,113280.0,113270.0,1.4387743]
[1752176162329,1.05331698,113280.0,113270.0,1.4387743]
[1752176162528,1.05331698,113280.0,113270.0,1.4388243]
[1752176163228,1.06210314,113280.0,113270.0,1.4388243]
[1752176163429,1.05331698,113280.0,113270.0,1.4388243]
[1752176163630,1.04931698,113280.0,113270.0,1.5035243]
[1752176164433,0.97820417,113280.0,113270.0,1.5035243]
[1752176166335,0.61740417,113280.0,113270.0,1.5035243]
[1752176166834,0.61735811,113280.0,113270.0,1.5035243]
[1752176167225,0.35218674,113280.0,113270.0,1.5035243]
[1752176167431,0.61671811,113280.0,113270.0,1.5035243]
[1752176168123,0.61735811,113280.0,113270.0,1.5035243]
[1752176169231,0.6173549,113280.0,113270.0,1.5035243]
[1752176171136,0.32188353,113280.0,113270.0,1.5035243]
[1752176171337,0.5547149,113280.0,113270.0,1.5035243]
[1752176171539,0.5553549,113280.0,113270.0,1.5035243]
[1752176172341,0.5112398,113280.0,113270.0,1.5035243]
[1752176172541,0.24606843,113280.0,113270.0,1.5035243]
[1752176172743,0.02486463,113280.0,113270.0,1.76869567]
[1752176172931,0.02486463,113280.0,113270.0,2.12949567]
[1752176173327,0.02486463,113280.0,113270.0,2.13853044]
[1752176174029,0.1784375,113290.0,113280.0,0.1764487]
[1752176174335,0.20092671,113290.0,113280.0,0.54413007]
[1752176174738,0.07191523,113290.0,113280.0,0.54413007]
[1752176175039,0.02448921,113290.0,113280.0,0.6397587]
[1752176175239,0.02448921,113290.0,113280.0,0.90493007]
[1752176175638,0.176419,113300.0,113290.0,0.1923332]
[1752176175838,0.1764176,113300.0,113290.0,1.90013227]
[1752176176040,0.1764176,113300.0,113290.0,1.85602517]
[1752176176341,0.1764176,113300.0,113290.0,1.5908538]
[1752176177442,0.1774176,113300.0,113290.0,1.85602517]
[1752176177642,0.1774176,113300.0,113290.0,1.5908538]
[1752176177844,0.1774176,113300.0,113290.0,1.85602517]
[1752176178537,0.001,113300.0,113290.0,1.85602517]
[1752176179040,0.04842602,113300.0,113290.0,1.85602517]
[1752176179246,0.04742602,113310.0,113300.0,0.1764176]
[1752176179448,0.04742602,113310.0,113300.0,0.54569897]
[1752176179748,0.64379399,113320.0,113310.0,0.192302]
[1752176179952,0.64443399,113320.0,113310.0,1.439792]
[1752176180252,1.00523399,113320.0,113310.0,1.439792]
[1752176180744,1.01404474,113320.0,113310.0,1.439792]
[1752176180943,1.00823399,113320.0,113310.0,1.439792]
[1752176181347,0.96080797,113320.0,113310.0,1.439792]
[1752176181536,1.0241587,113320.0,113310.0,1.439842]
[1752176181936,0.75898733,113320.0,113310.0,1.439842]
[1752176182150,0.6633587,113320.0,113310.0,1.439842]
[1752176182452,0.96080797,113320.0,113310.0,1.439842]
[1752176183936,0.60000797,113320.0,113310.0,1.439842]
[1752176184136,0.96080797,113320.0,113310.0,1.439842]
[1752176184646,0.69895161,113320.0,113310.0,1.439842]
[1752176184944,0.96412298,113320.0,113310.0,1.439842]
[1752176185142,0.59025401,113320.0,113310.0,1.439842]
[1752176185340,0.41385421,113320.0,113310.0,1.77051337]
[1752176185544,0.22880061,113320.0,113310.0,1.505342]
[1752176185745,0.49397198,113320.0,113310.0,1.505342]
[1752176185948,0.55851198,113320.0,113310.0,1.505342]
[1752176186248,1.18448335,113320.0,113310.0,0.04076]
[1752176186446,1.18448335,113320.0,113310.0,0.201262]
[1752176186645,1.18448335,113320.0,113310.0,0.02486]
[1752176186646,1.53267198,113320.0,113310.0,0.02486]
[1752176186847,0.91931198,113320.0,113310.0,0.217162]
[1752176187049,1.53275198,113320.0,113310.0,0.217162]
[1752176187748,1.55496774,113320.0,113310.0,0.217162]
[1752176187950,1.55496774,113320.0,113310.0,0.04076]
[1752176188652,1.55496774,113320.0,113310.0,0.217162]
[1752176188849,1.55496774,113320.0,113310.0,0.04076]
[1752176189754,1.55496774,113320.0,113310.0,0.217162]
[1752176190953,1.50755353,113320.0,113310.0,0.217162]
[1752176191158,1.55498146,113320.0,113310.0,0.2171621]
[1752176191342,1.50755353,113320.0,113310.0,0.2171621]
[1752176191850,1.50755353,113320.0,113310.0,0.04076]
[1752176192153,1.55498422,113320.0,113310.0,0.2171621]
[1752176192348,1.55498422,113320.0,113310.0,0.04076]
[1752176192652,1.50755353,113320.0,113310.0,0.04076]
[1752176193460,1.50755353,113320.0,113310.0,0.217162]
[1752176194152,1.50755353,113320.0,113310.0,0.04076]
[1752176195254,1.55499938,113320.0,113310.0,0.04076]
[1752176195455,1.50755353,113320.0,113310.0,0.04076]
[1752176195654,1.55500622,113320.0,113310.0,0.04076]
[1752176196058,1.55480622,113320.0,113310.0,0.04076]
[1752176196255,1.55480622,113320.0,113290.0,0.02486]
[1752176196256,2.0700872,113320.0,113290.0,0.02486]
[1752176196453,1.42836024,113300.0,113290.0,5e-05]
[1752176196653,1.49866869,113300.0,113290.0,5e-05]
[1752176196953,2.08718532,113300.0,113290.0,5e-05]
[1752176197558,2.03973263,113300.0,113290.0,5e-05]
[1752176198357,2.03973263,113300.0,113290.0,0.00205]
[1752176199256,2.03973263,113300.0,113290.0,0.00305]
[1752176199657,1.86320463,113300.0,113290.0,0.00305]
[1752176200458,1.24964463,113300.0,113290.0,0.00305]
[1752176200663,1.86312463,113300.0,113290.0,0.00305]
[1752176201261,1.24964463,113300.0,113290.0,0.00305]
[1752176201561,1.86280463,113300.0,113290.0,0.00305]
[1752176205365,1.91026454,113300.0,113290.0,0.00305]
[1752176205658,1.86280463,113300.0,113290.0,0.00305]
[1752176205864,1.24964463,113300.0,113290.0,0.00305]
[1752176206063,1.86228463,113300.0,113290.0,0.00305]
[1752176206953,0.1764331,113290.0,113280.0,5e-05]
[1752176207268,1.2026435,113290.0,113280.0,5e-05]
[1752176207457,1.3798275,113290.0,113280.0,5e-05]
[1752176208259,1.3798275,113290.0,113280.0,0.00505]
[1752176208768,1.1558316,113290.0,113280.0,0.00505]
[1752176211470,0.1764487,113280.0,113270.0,5e-05]
[1752176211764,1.81424616,113280.0,113270.0,5e-05]
[1752176211969,0.1764799,113260.0,113250.0,0.0412095]
[1752176212270,1.43718703,113260.0,113250.0,0.0412095]
[1752176212472,0.88970703,113260.0,113250.0,0.0412095]
[1752176212670,1.57295793,113260.0,113250.0,0.0412095]
[1752176213061,0.96051793,113260.0,113250.0,0.0412095]
[1752176213262,1.58198337,113260.0,113250.0,0.0412095]
[1752176213769,1.58190337,113260.0,113250.0,0.0412095]
[1752176214565,1.58190337,113260.0,113250.0,0.0422095]
[1752176214967,1.58190337,113260.0,113250.0,0.0432095]
[1752176215459,0.96958337,113260.0,113250.0,0.0432095]
[1752176215666,1.58190337,113260.0,113250.0,0.0432095]
[1752176220265,1.26598337,113260.0,113250.0,0.0590195]
[1752176220571,1.87798337,113260.0,113250.0,0.1201195]
[1752176222372,1.26598337,113260.0,113250.0,0.1201195]
[1752176222575,0.19933566,113260.0,113250.0,0.56178627]
[1752176222769,0.81049566,113260.0,113250.0,0.56178627]
[1752176222971,0.81049566,113260.0,113250.0,0.2966149]
[1752176223276,0.82013221,113260.0,113250.0,0.2966149]
[1752176223672,1.08530358,113260.0,113250.0,0.2966149]
[1752176225081,1.08530358,113260.0,113250.0,0.1201195]
[1752176225478,1.08530358,113260.0,113250.0,0.2966149]
[1752176225679,1.44610358,113260.0,113250.0,0.1201195]
[1752176225879,1.49350254,113260.0,113250.0,0.1201195]
[1752176226079,1.22833117,113260.0,113250.0,0.1201195]
[1752176226280,1.49350254,113260.0,113250.0,0.1201195]
[1752176226475,1.13270254,113260.0,113250.0,0.1201195]
[1752176226776,1.49350254,113260.0,113250.0,0.1201195]
[1752176227281,1.52430254,113260.0,113250.0,0.1201195]
[1752176227484,1.55620254,113260.0,113250.0,0.1201195]
[1752176228579,0.94440254,113260.0,113250.0,0.1201195]
[1752176228785,1.55604254,113260.0,113250.0,0.1201195]
[1752176230397,0.94440254,113260.0,113250.0,0.1201195]
[1752176230687,1.55604254,113260.0,113250.0,0.1201195]
[1752176231490,1.55616646,113260.0,113250.0,0.1201195]
[1752176232091,1.50864358,113260.0,113250.0,0.1201195]
[1752176232783,1.50864358,113260.0,113250.0,0.0432095]
[1752176233390,1.77381495,113260.0,113250.0,0.0185995]
[1752176233582,1.77381495,113260.0,113250.0,0.00205]
[1752176234288,1.83716568,113260.0,113250.0,0.00205]
[1752176234680,1.77381495,113260.0,113250.0,0.00205]
[1752176235088,1.77381495,113260.0,113250.0,0.00105]
[1752176235387,1.84016568,113260.0,113250.0,5e-05]
[1752176236090,1.83964568,113260.0,113250.0,5e-05]
[1752176236290,1.84064568,113260.0,113250.0,5e-05]
[1752176242496,1.84084814,113260.0,113250.0,5e-05]
[1752176243588,1.77749741,113260.0,113250.0,5e-05]
[1752176245191,1.24715467,113260.0,113250.0,5e-05]
[1752176245397,1.77749741,113260.0,113250.0,5e-05]
[1752176245896,1.16537741,113260.0,113250.0,5e-05]
[1752176246097,1.77713741,113260.0,113250.0,5e-05]
[1752176247099,1.77713741,113260.0,113250.0,1e-07]
[1752176248401,1.16537741,113260.0,113250.0,1e-07]
[1752176248600,1.77709741,113260.0,113250.0,1e-07]
[1752176249499,1.84045023,113260.0,113250.0,1e-07]
[1752176249696,1.77709741,113260.0,113250.0,1e-07]
[1752176250396,1.84044761,113260.0,113250.0,1e-07]
[1752176250595,1.77709741,113260.0,113250.0,1e-07]
[1752176251398,1.84044535,113260.0,113250.0,1e-07]
[1752176252597,0.1764953,113250.0,113240.0,0.00176608]
[1752176252801,1.15045626,113250.0,113240.0,0.00176608]
[1752176253002,1.15109626,113250.0,113240.0,0.00176608]
[1752176254412,1.2144442,113250.0,113240.0,0.00176608]
[1752176255012,1.2154442,113250.0,113240.0,0.00176608]
[1752176255314,1.15209626,113250.0,113240.0,0.00176608]
[1752176256710,1.15209626,113250.0,113240.0,0.02548608]
[1752176256906,1.15209626,113250.0,113240.0,0.00176608]
[1752176262312,0.1765109,113240.0,113230.0,0.09088624]
[1752176262508,1.81068629,113240.0,113230.0,0.09088624]
[1752176262712,1.54551492,113240.0,113230.0,0.09088624]
[1752176263116,1.49796049,113240.0,113230.0,0.09088624]
[1752176263322,1.54553163,113240.0,113230.0,0.09088624]
[1752176263819,0.82490049,113240.0,113230.0,0.10729624]
[1752176264022,1.43666049,113240.0,113230.0,0.10729624]
[1752176264613,1.43666049,113240.0,113230.0,0.10829624]
[1752176265820,1.43666049,113240.0,113230.0,0.10929624]
[1752176266219,1.17148912,113240.0,113230.0,0.02852624]
[1752176266418,1.50186049,113240.0,113230.0,0.02852624]
[1752176267218,1.50186049,113240.0,113230.0,0.09172624]
[1752176267715,1.50182049,113240.0,113230.0,0.09172624]
[1752176267914,1.50246049,113240.0,113230.0,0.09172624]
[1752176268114,1.50246049,113240.0,113230.0,0.09177624]
[1752176268314,0.89074049,113240.0,113230.0,0.09177624]
[1752176268513,1.50246049,113240.0,113230.0,0.09177624]
[1752176269118,1.50346049,113240.0,113230.0,0.08977624]
[1752176269318,1.50546049,113240.0,113230.0,0.08977624]
[1752176270322,0.82854049,113240.0,113230.0,0.10618624]
[1752176270616,1.44026049,113240.0,113230.0,0.10618624]
[1752176271123,1.43826049,113240.0,113230.0,0.10618624]
[1752176271316,1.44026049,113240.0,113230.0,0.10618624]
[1752176271717,0.82854049,113240.0,113230.0,0.10618624]
[1752176272118,1.44022049,113240.0,113230.0,0.10618624]
[1752176272318,1.50356843,113240.0,113230.0,0.10618624]
[1752176273321,1.7687398,113240.0,113230.0,0.02657624]
[1752176273517,1.8300398,113240.0,113230.0,0.02657624]
[1752176273716,1.8300398,113240.0,113230.0,0.00181624]
[1752176274314,1.76669186,113240.0,113230.0,0.00181624]
[1752176276428,0.192812,113220.0,113210.0,0.02335899]
[1752176276628,0.2162676,113210.0,113200.0,0.02322671]
[1752176276925,0.87357418,113210.0,113200.0,0.02322671]
[1752176277122,0.87421418,113210.0,113200.0,0.02322671]
[1752176277529,0.90611418,113210.0,113200.0,0.02322671]
[1752176277718,0.97705003,113210.0,113200.0,0.02322671]
[1752176277919,0.67997866,113210.0,113200.0,0.02622671]
[1752176278231,0.94515003,113210.0,113200.0,0.02622671]
[1752176278422,0.94515003,113210.0,113200.0,0.05098671]
[1752176278824,0.94515003,113210.0,113200.0,0.05298671]
[1752176279624,0.94515003,113210.0,113200.0,0.08548671]
[1752176280123,0.85077418,113210.0,113200.0,0.26206001]
[1752176280325,0.02305822,113210.0,113200.0,1.31470338]
[1752176280519,0.19897592,113210.0,113200.0,1.31470338]
[1752176280720,0.2206822,113220.0,113210.0,0.2177277]
[1752176280920,0.2206822,113220.0,113210.0,1.1428886]
[1752176281121,0.2206822,113220.0,113210.0,1.31954459]
[1752176281732,0.2206822,113220.0,113210.0,1.34974459]
[1752176281931,0.2206822,113220.0,113210.0,1.08557322]
[1752176282127,0.2206822,113220.0,113210.0,1.08657322]
[1752176283434,0.2206822,113220.0,113210.0,1.35174459]
[1752176283629,0.2206822,113220.0,113210.0,1.08657322]
[1752176284129,0.48585357,113220.0,113210.0,1.08657322]
[1752176285134,0.2206822,113220.0,113210.0,1.08657322]
[1752176286736,0.2206822,113220.0,113210.0,1.35174459]
[1752176287123,0.2206822,113220.0,113210.0,1.10174459]
[1752176287334,0.2206822,113220.0,113210.0,0.83657322]
[1752176287531,0.2206822,113220.0,113210.0,1.10174459]
[1752176287733,0.2206822,113220.0,113210.0,0.83657322]
[1752176288938,0.2206822,113220.0,113210.0,0.84547335]
[1752176290539,0.2206822,113220.0,113210.0,1.11064472]
[1752176291034,0.2206822,113220.0,113210.0,0.84547335]
[1752176292335,0.2206822,113220.0,113210.0,1.11064472]
[1752176292740,0.24288869,113220.0,113210.0,1.11064472]
[1752176293640,0.24288869,113220.0,113210.0,0.93398873]
[1752176294144,0.24288869,113220.0,113210.0,0.66881736]
[1752176294328,0.24288869,113220.0,113210.0,0.93398873]
[1752176295037,0.24288869,113220.0,113210.0,0.66881736]
[1752176295641,0.24288869,113220.0,113210.0,0.65991723]
[1752176295942,0.50806006,113220.0,113210.0,1.27155723]
[1752176296439,0.24288869,113220.0,113210.0,1.27155723]
[1752176297433,0.52466006,113220.0,113210.0,0.05985953]
[1752176297634,1.23609143,113220.0,113210.0,0.05985953]
[1752176298238,1.84773143,113220.0,113210.0,0.05985953]
[1752176299841,0.2169777,113210.0,113200.0,0.00681671]
[1752176300053,0.89555556,113210.0,113200.0,0.00681671]
[1752176300347,1.50783556,113210.0,113200.0,0.00681671]
[1752176301647,1.50883556,113210.0,113200.0,0.00681671]
[1752176301847,1.51083556,113210.0,113200.0,0.00681671]
[1752176302952,1.6118706,113210.0,113200.0,0.00681671]
[1752176303549,1.6158706,113210.0,113200.0,0.00681671]
[1752176308848,1.6159906,113210.0,113200.0,0.04730671]
[1752176309649,1.66357911,113210.0,113200.0,0.04730671]
[1752176311652,1.62315911,113210.0,113200.0,0.00681671]
[1752176312152,1.59295911,113210.0,113200.0,0.00681671]
[1752176313649,1.56255911,113210.0,113200.0,0.00681671]
[1752176314653,1.5149706,113210.0,113200.0,0.00681671]
[1752176315156,1.56236,113210.0,113200.0,0.00681671]
[1752176315553,0.9506,113210.0,113200.0,0.00681671]
[1752176315749,1.56236,113210.0,113200.0,0.00681671]
[1752176316355,1.54015351,113210.0,113200.0,0.00681671]
[1752176316551,1.49276411,113210.0,113200.0,0.00681671]
[1752176316751,0.88100411,113210.0,113200.0,0.00681671]
[1752176316945,1.49276411,113210.0,113200.0,0.00681671]
[1752176322261,1.49476411,113210.0,113200.0,0.00681671]
[1752176322554,1.54216166,113210.0,113200.0,0.00681671]
[1752176322761,1.56541054,113210.0,113200.0,0.00681671]
[1752176323163,1.55941054,113210.0,113200.0,0.00681671]
[1752176323460,1.55541054,113210.0,113200.0,0.00681671]
[1752176323759,1.55637054,113210.0,113200.0,0.00681671]
[1752176324456,0.94465054,113210.0,113200.0,0.00681671]
[1752176324660,1.55637054,113210.0,113200.0,0.00681671]
[1752176325159,1.55537054,113210.0,113200.0,0.00681671]
[1752176325358,1.55837054,113210.0,113200.0,0.00681671]
[1752176325958,1.56237054,113210.0,113200.0,0.00681671]
[1752176326257,0.95065054,113210.0,113200.0,0.00681671]
[1752176326653,1.56237975,113210.0,113200.0,0.00681671]
[1752176328162,1.55937975,113210.0,113200.0,0.00681671]
[1752176328363,1.56137975,113210.0,113200.0,0.00681671]
[1752176328758,1.55737975,113210.0,113200.0,0.00681671]
[1752176328959,0.94769975,113210.0,113200.0,0.00681671]
[1752176329160,1.55937975,113210.0,113200.0,0.00681671]
[1752176329865,0.94769975,113210.0,113200.0,0.18338991]
[1752176330368,1.51189299,113210.0,113200.0,0.02355143]
[1752176331365,1.50989299,113210.0,113200.0,0.02455143]
[1752176331867,1.55733975,113210.0,113200.0,0.02455143]
[1752176332068,1.55533975,113210.0,113200.0,0.02555143]
[1752176332362,1.50789299,113210.0,113200.0,0.02555143]
[1752176332968,1.55533975,113210.0,113200.0,0.02555143]
[1752176337272,1.55533975,113210.0,113200.0,0.02455143]
[1752176337472,1.55733975,113210.0,113200.0,0.02455143]
[1752176338072,1.55733975,113210.0,113200.0,0.02355143]
[1752176338381,1.55933975,113210.0,113200.0,0.02355143]
[1752176342373,0.94769975,113210.0,113200.0,0.02355143]
[1752176342571,1.55917975,113210.0,113200.0,0.02355143]
[1752176343973,1.55919844,113210.0,113200.0,0.02355143]
[1752176347978,1.51175168,113210.0,113200.0,0.02355143]
[1752176354582,1.55926982,113210.0,113200.0,0.02355143]
[1752176355681,1.51175168,113210.0,113200.0,0.02355143]
[1752176356483,1.51175168,113210.0,113200.0,0.0236237]
[1752176356878,1.55926501,113210.0,113200.0,0.0236237]
[1752176357282,1.51175168,113210.0,113200.0,0.0236237]
[1752176358881,1.77771631,113210.0,113200.0,0.0236237]
[1752176364885,1.84091304,113210.0,113200.0,0.0236237]
[1752176365276,1.77771631,113210.0,113200.0,0.0236237]
[1752176366783,1.77771631,113210.0,113200.0,0.00688898]
[1752176369987,0.80543631,113210.0,113200.0,0.00688898]
[1752176370174,1.77735631,113210.0,113200.0,0.00688898]
[1752176370873,1.84055304,113210.0,113200.0,0.00688898]
[1752176371885,1.77735631,113210.0,113200.0,0.00688898]
[1752176374687,1.84055304,113210.0,113200.0,0.00688898]
[1752176374887,1.77735631,113210.0,113200.0,0.00688898]
[1752176378595,1.77735631,113210.0,113200.0,0.02363907]
[1752176380891,1.84055304,113210.0,113200.0,0.02363907]
[1752176382001,1.77735631,113210.0,113200.0,0.02363907]
[1752176383496,0.63510031,113210.0,113200.0,0.02363907]
[1752176383694,0.94819493,113210.0,113200.0,0.46578027]
[1752176383997,1.55915637,113210.0,113200.0,0.20021227]
[1752176384204,1.55915637,113210.0,113200.0,0.02363907]
[1752176384802,1.55715637,113210.0,113200.0,0.02463907]
[1752176385600,1.55515637,113210.0,113200.0,0.02463907]
[1752176385800,1.55515637,113210.0,113200.0,0.02563907]
[1752176386693,1.19431637,113210.0,113200.0,0.46778027]
[1752176386890,1.19431637,113210.0,113200.0,0.20221227]
[1752176388699,1.19431637,113210.0,113200.0,0.46778027]
[1752176389800,1.55511637,113210.0,113200.0,0.46778027]
[1752176389999,1.55511329,113210.0,113200.0,0.46778027]
[1752176390600,1.55511329,113210.0,113200.0,0.20221227]
[1752176391702,1.12339825,113210.0,113200.0,0.20221227]
[1752176392398,1.07587019,113210.0,113200.0,0.20221227]
[1752176393199,0.28847249,113210.0,113200.0,0.46778027]
[1752176393499,0.28783249,113210.0,113200.0,0.46778027]
[1752176394204,0.02226449,113210.0,113200.0,0.46778027]
[1752176394400,0.02226449,113210.0,113200.0,0.73334827]
[1752176394600,0.02226449,113210.0,113200.0,0.82858027]
[1752176395697,1.5019955,113220.0,113210.0,0.1765576]
[1752176395900,1.79045108,113220.0,113210.0,0.1765576]
[1752176396604,1.38551508,113220.0,113210.0,0.1765576]
[1752176396797,0.77471508,113220.0,113210.0,0.1765576]
[1752176397003,0.46499758,113220.0,113210.0,0.4421256]
[1752176398405,0.28845558,113220.0,113210.0,0.4421256]
[1752176398605,0.28781558,113220.0,113210.0,0.4421256]
[1752176399102,0.46435758,113220.0,113210.0,0.4421256]
[1752176399906,0.28781558,113220.0,113210.0,0.4421256]
[1752176400105,0.46435758,113220.0,113210.0,0.4451256]
[1752176400606,0.46499758,113220.0,113210.0,0.4451256]
[1752176401006,0.46499758,113220.0,113210.0,0.4471256]
[1752176402409,0.46499758,113220.0,113210.0,0.1815576]
[1752176402600,0.46499758,113220.0,113210.0,0.4471256]
[1752176403209,0.73056558,113220.0,113210.0,0.1815576]
[1752176404411,0.46499758,113220.0,113210.0,0.1815576]
[1752176405807,0.73056558,113220.0,113210.0,0.1815576]
[1752176408223,0.28845558,113220.0,113210.0,0.1815576]
[1752176408418,0.28781558,113220.0,113210.0,0.4471256]
[1752176409121,0.30367558,113220.0,113210.0,0.4868056]
[1752176409525,0.33397558,113220.0,113210.0,0.4868056]
[1752176409928,0.33397558,113220.0,113210.0,0.8476056]
[1752176410620,0.36657558,113220.0,113210.0,0.8476056]
[1752176410821,0.36721558,113220.0,113210.0,0.8476056]
[1752176411621,0.39087558,113220.0,113210.0,0.8476056]
[1752176413228,0.36721036,113220.0,113210.0,0.8476056]
[1752176414533,0.54375226,113220.0,113210.0,0.8476056]
[1752176414731,0.83298026,113220.0,113210.0,0.2212376]
[1752176415823,0.30184426,113220.0,113210.0,0.2212376]
[1752176416129,0.83234026,113220.0,113210.0,0.2212876]
[1752176416330,0.83298026,113220.0,113210.0,0.2212876]
[1752176416535,0.83298026,113220.0,113210.0,0.4868556]
[1752176417827,0.65643836,113220.0,113210.0,0.4868556]
[1752176418341,0.39087036,113220.0,113210.0,0.4868556]
[1752176418725,0.56741226,113220.0,113210.0,0.2212876]
[1752176418941,0.39087036,113220.0,113210.0,0.2212876]
[1752176419334,0.65643836,113220.0,113210.0,0.2212876]
[1752176419534,0.83298026,113220.0,113210.0,0.2212876]
[1752176419928,0.83298026,113220.0,113210.0,0.4868556]
[1752176420131,0.65643836,113220.0,113210.0,0.4868556]
[1752176420930,0.88050832,113220.0,113210.0,0.4868556]
[1752176421229,0.65643836,113220.0,113210.0,0.2212876]
[1752176421432,0.56741226,113220.0,113210.0,0.2212876]
[1752176421628,0.83298026,113220.0,113210.0,0.2212876]
[1752176421830,0.65643836,113220.0,113210.0,0.2212876]
[1752176422134,0.39087036,113220.0,113210.0,0.2212876]
[1752176422435,0.12530236,113220.0,113210.0,0.2212876]
[1752176422631,0.39023036,113220.0,113210.0,0.4868556]
[1752176423834,0.39087036,113220.0,113210.0,0.4868556]
[1752176424831,0.43839842,113220.0,113210.0,0.4868556]
[1752176425033,0.39087036,113220.0,113210.0,0.4868556]
[1752176425936,0.39087036,113220.0,113210.0,0.49565067]
[1752176426137,0.43839842,113220.0,113210.0,0.49565067]
[1752176426738,0.39087036,113220.0,113210.0,0.49565067]
[1752176427139,0.43839842,113220.0,113210.0,0.49565067]
[1752176428342,0.43839842,113220.0,113210.0,0.4868556]
[1752176429039,0.43839842,113220.0,113210.0,0.8476556]
[1752176429337,0.43839842,113220.0,113210.0,0.4868556]
[1752176429542,0.41473842,113220.0,113210.0,0.49559138]
[1752176430745,0.43839842,113220.0,113210.0,0.49559138]
[1752176431244,0.39087036,113220.0,113210.0,0.49559138]
[1752176431545,0.41473842,113220.0,113210.0,0.47093138]
[1752176431844,0.35135036,113220.0,113210.0,0.45591138]
[1752176433543,0.39887842,113220.0,113210.0,0.45591138]
[1752176434243,0.36627842,113220.0,113210.0,0.45591138]
[1752176435249,0.33597842,113220.0,113210.0,0.45591138]
[1752176435447,0.06977042,113220.0,113210.0,0.45591138]
[1752176435746,0.33533842,113220.0,113210.0,0.45591138]
[1752176436247,0.06977042,113220.0,113210.0,0.45591138]
[1752176436647,0.33533842,113220.0,113210.0,0.45591138]
[1752176436844,0.06977042,113220.0,113210.0,0.45597827]
[1752176437044,0.02224236,113220.0,113210.0,0.45597827]
[1752176437748,0.40832806,113230.0,113220.0,0.1765419]
[1752176437949,0.43125337,113230.0,113220.0,1.9447451]
[1752176438152,0.43061337,113230.0,113220.0,1.9447451]
[1752176438338,0.69618137,113230.0,113220.0,1.4136091]
[1752176438541,0.87334767,113230.0,113220.0,1.6791771]
[1752176438849,0.87334767,113230.0,113220.0,1.4136091]
[1752176439051,1.13891567,113230.0,113220.0,1.4136091]
[1752176439442,0.87334767,113230.0,113220.0,1.4136091]
[1752176439752,0.43125337,113230.0,113220.0,1.4146091]
[1752176439951,0.87334767,113230.0,113220.0,1.4156091]
[1752176440550,0.87334767,113230.0,113220.0,1.4156591]
[1752176440752,0.69682137,113230.0,113220.0,1.4156591]
[1752176441249,0.69682137,113230.0,113220.0,0.1956191]
[1752176441553,0.69682137,113230.0,113220.0,0.8055791]
[1752176443748,0.69682137,113230.0,113220.0,1.0711471]
[1752176446359,0.33602137,113230.0,113220.0,1.0711471]
[1752176446657,0.33538137,113230.0,113220.0,1.0711471]
[1752176447050,0.33538137,113230.0,113220.0,0.8055791]
[1752176447357,0.28785331,113230.0,113220.0,1.0711471]
[1752176449658,0.28785331,113230.0,113220.0,1.4319471]
[1752176451761,0.33538137,113230.0,113220.0,1.4319471]
[1752176451960,0.28785331,113230.0,113220.0,1.4319471]
[1752176455465,0.02228531,113230.0,113220.0,1.4319471]
[1752176455660,0.28785331,113230.0,113220.0,1.4319471]
[1752176456461,0.02228531,113230.0,113220.0,1.6975151]
[1752176456765,0.28785331,113230.0,113220.0,1.4319471]
[1752176460064,0.33538137,113230.0,113220.0,1.4319471]
[1752176461866,0.33538137,113230.0,113220.0,1.1663791]
[1752176462071,0.38308531,113230.0,113220.0,0.8051391]
[1752176462268,0.69618137,113230.0,113220.0,0.8051391]
[1752176464264,0.69682137,113230.0,113220.0,0.8051391]
[1752176464770,0.33602137,113230.0,113220.0,0.8051391]
[1752176464970,0.28785331,113230.0,113220.0,1.0707071]
[1752176469474,0.33538137,113230.0,113220.0,1.0707071]
[1752176472371,0.33538137,113230.0,113220.0,0.8051391]
[1752176472578,0.33538137,113230.0,113220.0,1.0707071]
[1752176474678,0.28785331,113230.0,113220.0,1.0707071]
[1752176474978,0.33538137,113230.0,113220.0,1.0707071]
[1752176475381,0.28785331,113230.0,113220.0,1.0707071]
[1752176476173,0.28785331,113230.0,113220.0,0.4611871]
[1752176476367,0.28785331,113230.0,113220.0,0.8048191]
[1752176476780,0.28785331,113230.0,113220.0,1.0703871]
[1752176477378,0.46437961,113230.0,113220.0,1.0703871]
[1752176477680,0.51190767,113230.0,113220.0,1.0703871]
[1752176477979,0.51190767,113230.0,113220.0,0.4611871]
[1752176478179,0.51190767,113230.0,113220.0,1.0703871]
[1752176480084,0.51190767,113230.0,113220.0,0.8048191]
[1752176480376,0.51254767,113230.0,113220.0,1.0703871]
[1752176481381,1.13891567,113230.0,113220.0,0.8047391]
[1752176481576,0.69682137,113230.0,113220.0,0.1956191]
[1752176481778,0.07045337,113230.0,113220.0,0.1956191]
[1752176481983,0.33538137,113230.0,113220.0,0.4611871]
[1752176482179,0.28785331,113230.0,113220.0,0.1956191]
[1752176482376,0.46437961,113230.0,113220.0,0.1956191]
[1752176482578,0.87334767,113230.0,113220.0,0.1956191]
[1752176484883,0.87334767,113230.0,113220.0,0.4611871]
[1752176485183,0.87334767,113230.0,113220.0,0.1956191]
[1752176492288,0.60777967,113230.0,113220.0,0.1956191]
[1752176492494,0.87334767,113230.0,113220.0,0.1956191]
[1752176494996,0.82581961,113230.0,113220.0,0.1956191]
[1752176497599,0.87330495,113230.0,113220.0,0.1956191]
[1752176499497,0.82581961,113230.0,113220.0,0.1956191]
[1752176501699,0.87331584,113230.0,113220.0,0.1956191]
[1752176503902,0.60774784,113230.0,113220.0,0.1956191]
[1752176504199,0.87331584,113230.0,113220.0,0.1956191]
[1752176504400,0.87331584,113230.0,113220.0,0.4611871]
[1752176504997,0.82581961,113230.0,113220.0,0.4611871]
[1752176505295,0.87331584,113230.0,113220.0,0.4611871]
[1752176506497,0.82581961,113230.0,113220.0,0.1956191]
[1752176510796,1.16873161,113230.0,113220.0,0.4611871]
[1752176511001,1.43429961,113230.0,113220.0,0.4611871]
[1752176511203,0.87331584,113230.0,113220.0,0.4611871]
[1752176511504,1.48179584,113230.0,113220.0,0.4611871]
[1752176512904,1.48179584,113230.0,113220.0,0.1956191]
[1752176513104,1.43429961,113230.0,113220.0,0.1956191]
[1752176513306,1.43429961,113230.0,113220.0,0.4611871]
[1752176514606,1.43429961,113230.0,113220.0,0.46124862]
[1752176514802,1.48179584,113230.0,113220.0,0.46124862]
[1752176515702,0.87331584,113230.0,113220.0,0.46124862]
[1752176515904,0.43122154,113230.0,113220.0,0.72681662]
[1752176516202,0.43122154,113230.0,113220.0,1.08761662]
[1752176516203,0.02292531,113230.0,113220.0,1.08761662]
[1752176516408,0.02228531,113230.0,113220.0,1.08761662]
[1752176516604,0.04749623,113230.0,113220.0,1.08761662]
[1752176516808,0.67386423,113240.0,113230.0,0.1765262]